fUSD/lending_fUSD_20250510
["ID","MTS","AMOUNT","RATE_DAILY","PERIOD"]
[360640575,1746912684853,-400.0,0.00019178,2]
[360640576,1746912684863,-400.0,0.00019178,2]
[360640577,1746912684872,-400.0,0.00019178,2]
[360640578,1746912684882,-873.78,0.00019178,2]
[360640579,1746912684892,-400.0,0.00019178,2]
[360640580,1746912684903,-400.0,0.00019178,2]
[360640581,1746912684912,-400.0,0.00019178,2]
[360640582,1746912684921,-873.78,0.00019178,2]
[360640583,1746912684931,-400.0,0.00019178,2]
[360640584,1746912684940,-528.42922394,0.00019178,2]
[360640585,1746912684950,-400.0,0.00019178,2]
[360640586,1746912684960,-873.78,0.00019178,2]
[360640587,1746912684970,-400.0,0.00019178,2]
[360640588,1746912684980,-400.0,0.00019178,2]
[360640589,1746912684989,-400.0,0.00019178,2]
[360640590,1746912684999,-300.0,0.00019178,2]
[360640591,1746912685008,-400.0,0.00019178,2]
[360640592,1746912685018,-400.0,0.00019178,2]
[360640593,1746912685027,-400.0,0.00019178,2]
[360640594,1746912685037,-400.0,0.00019178,2]
[360640595,1746912685046,-283.20240785,0.00019178,2]
[360640596,1746912685056,-400.0,0.00019178,2]
[360640597,1746912685065,-400.0,0.00019178,2]
[360640598,1746912685074,-400.0,0.00019178,2]
[360640599,1746912685085,-400.0,0.00019178,2]
[360640600,1746912685095,-400.0,0.00019178,2]
[360640601,1746912685104,-400.0,0.00019178,2]
[360640602,1746912685281,-467.65597295,0.00019178,2]
[360640603,1746912685291,-400.0,0.00019178,2]
[360640604,1746912685301,-400.0,0.00019178,2]
[360640605,1746912685310,-400.0,0.00019178,2]
[360640606,1746912685320,-400.0,0.00019178,2]
[360640607,1746912685329,-400.0,0.00019178,2]
[360640608,1746912685339,-400.0,0.00019178,2]
[360640609,1746912685348,-400.0,0.00019178,2]
[360640610,1746912685357,-400.0,0.00019178,2]
[360640611,1746912685368,-400.0,0.00019178,2]
[360640612,1746912685381,-400.0,0.00019178,2]
[360640613,1746912685391,-400.0,0.00019178,2]
[360640614,1746912685401,-400.0,0.00019178,2]
[360640615,1746912685410,-400.0,0.00019178,2]
[360640616,1746912685422,-357.16,0.00019178,2]
[360640617,1746912685431,-400.0,0.00019178,2]
[360640618,1746912685440,-400.0,0.00019178,2]
[360640619,1746912685450,-400.0,0.00019178,2]
[360640620,1746912685460,-400.0,0.00019178,2]
[360640621,1746912685470,-400.0,0.00019178,2]
[360640622,1746912685480,-161.4115648,0.00019178,2]
[360640623,1746912685490,-943.89,0.00019178,2]
[360640624,1746912685500,-400.0,0.00019178,2]
[360640625,1746912685511,-873.78,0.00019178,2]
[360640626,1746912685520,-400.0,0.00019178,2]
[360640627,1746912685531,-400.0,0.00019178,2]
[360640628,1746912685541,-943.89,0.00019178,2]
[360640629,1746912685552,-400.0,0.00019178,2]
[360640630,1746912685562,-400.0,0.00019178,2]
[360640631,1746912685572,-943.89,0.00019178,2]
[360640632,1746912685582,-400.0,0.00019178,2]
[360640633,1746912685592,-400.0,0.00019178,2]
[360640634,1746912685602,-943.89,0.00019178,2]
[360640635,1746912685612,-400.0,0.00019178,2]
[360640636,1746912685621,-400.0,0.00019178,2]
[360640637,1746912685630,-400.0,0.00019178,2]
[360640638,1746912685640,-943.89,0.00019178,2]
[360640639,1746912685649,-400.0,0.00019178,2]
[360640640,1746912685659,-400.0,0.00019178,2]
[360640641,1746912685669,-943.89,0.00019178,2]
[360640642,1746912685679,-400.0,0.00019178,2]
[360640643,1746912685688,-156.56428303,0.00019178,2]
[360640644,1746912685697,-400.0,0.00019178,2]
[360640645,1746912685708,-943.89,0.00019178,2]
[360640646,1746912685718,-400.0,0.00019178,2]
[360640647,1746912685727,-400.0,0.00019178,2]
[360640648,1746912685738,-943.89,0.00019178,2]
[360640649,1746912685747,-400.0,0.00019178,2]
[360640650,1746912685756,-943.89,0.00019178,2]
[360640651,1746912685766,-400.0,0.00019178,2]
[360640652,1746912685776,-400.0,0.00019178,2]
[360640653,1746912685785,-943.89,0.00019178,2]
[360640654,1746912685795,-400.0,0.00019178,2]
[360640655,1746912685804,-943.89,0.00019178,2]
[360640656,1746912685813,-400.0,0.00019178,2]
[360640657,1746912685823,-943.89,0.00019178,2]
[360640658,1746912685833,-400.0,0.00019178,2]
[360640659,1746912685843,-943.89,0.00019178,2]
[360640660,1746912685853,-752.63,0.00019178,2]
[360640661,1746912685863,-400.0,0.00019178,2]
[360640662,1746912685873,-943.89,0.00019178,2]
[360640663,1746912685882,-752.63,0.00019178,2]
[360640664,1746912685892,-400.0,0.00019178,2]
[360640665,1746912685902,-943.89,0.00019178,2]
[360640666,1746912685911,-400.0,0.00019178,2]
[360640667,1746912685921,-752.63,0.00019178,2]
[360640668,1746912685931,-400.0,0.00019178,2]
[360640669,1746912685941,-943.89,0.00019178,2]
[360640670,1746912685950,-400.0,0.00019178,2]
[360640671,1746912685960,-752.63,0.00019178,2]
[360640672,1746912685970,-151.347017,0.00019178,2]
[360640673,1746912685979,-400.0,0.00019178,2]
[360640674,1746912685989,-943.89,0.00019178,2]
[360640675,1746912685999,-514.97216828,0.00019178,2]
[360640676,1746912686008,-752.63,0.00019178,2]
[360640677,1746912686018,-400.0,0.00019178,2]
[360640678,1746912686027,-400.0,0.00019178,2]
[360640679,1746912686037,-943.89,0.00019178,2]
[360640680,1746912686047,-752.63,0.00019178,2]
[360640681,1746912686057,-441.95729936,0.00019178,2]
[360640682,1746912686067,-943.89,0.00019178,2]
[360640683,1746912686076,-752.63,0.00019178,2]
[360640684,1746912686086,-752.63,0.00019178,2]
[360640685,1746912686096,-752.63,0.00019178,2]
[360640686,1746912686105,-752.63,0.00019178,2]
[360640687,1746912686115,-752.63,0.00019178,2]
[360640688,1746912686124,-400.0,0.00019178,2]
[360640689,1746912686135,-752.63,0.00019178,2]
[360640690,1746912686145,-400.0,0.00019178,2]
[360640691,1746912686155,-400.0,0.00019178,2]
[360640692,1746912686164,-752.63,0.00019178,2]
[360640693,1746912686174,-400.0,0.00019178,2]
[360640694,1746912686183,-400.0,0.00019178,2]
[360640695,1746912686192,-1198.94,0.00019178,2]
[360640696,1746912686202,-752.63,0.00019178,2]
[360640697,1746912686211,-400.0,0.00019178,2]
[360640698,1746912686221,-400.0,0.00019178,2]
[360640699,1746912686230,-569.63,0.00019178,2]
[360640700,1746912686240,-1198.94,0.00019178,2]
[360640701,1746912686249,-752.63,0.00019178,2]
[360640702,1746912686258,-400.0,0.00019178,2]
[360640703,1746912686268,-569.63,0.00019178,2]
[360640704,1746912686278,-400.0,0.00019178,2]
[360640705,1746912686287,-1198.94,0.00019178,2]
[360640706,1746912686297,-752.63,0.00019178,2]
[360640707,1746912686307,-400.0,0.00019178,2]
[360640708,1746912686316,-569.63,0.00019178,2]
[360640709,1746912686326,-400.0,0.00019178,2]
[360640710,1746912686336,-1198.94,0.00019178,2]
[360640711,1746912686345,-752.63,0.00019178,2]
[360640712,1746912686355,-569.63,0.00019178,2]
[360640713,1746912686366,-400.0,0.00019178,2]
[360640714,1746912686377,-1198.94,0.00019178,2]
[360640715,1746912686387,-400.0,0.00019178,2]
[360640716,1746912686398,-752.63,0.00019178,2]
[360640717,1746912686408,-569.63,0.00019178,2]
[360640718,1746912686418,-400.0,0.00019178,2]
[360640719,1746912686428,-1198.94,0.00019178,2]
[360640720,1746912686439,-400.0,0.00019178,2]
[360640721,1746912686449,-752.63,0.00019178,2]
[360640722,1746912686459,-400.0,0.00019178,2]
[360640723,1746912686470,-569.63,0.00019178,2]
[360640724,1746912686479,-1198.94,0.00019178,2]
[360640725,1746912686489,-400.0,0.00019178,2]
[360640726,1746912686499,-400.0,0.00019178,2]
[360640727,1746912686508,-569.63,0.00019178,2]
[360640728,1746912686518,-1198.94,0.00019178,2]
[360640729,1746912686527,-400.0,0.00019178,2]
[360640730,1746912686537,-1198.94,0.00019178,2]
[360640731,1746912686547,-400.0,0.00019178,2]
[360640732,1746912686556,-569.63,0.00019178,2]
[360640733,1746912686566,-1198.94,0.00019178,2]
[360640734,1746912686575,-3295.86,0.00019178,2]
[360640735,1746912686585,-400.0,0.00019178,2]
[360640736,1746912686595,-569.63,0.00019178,2]
[360640737,1746912686604,-400.0,0.00019178,2]
[360640738,1746912686615,-400.0,0.00019178,2]
[360640739,1746912686625,-3295.86,0.00019178,2]
[360640740,1746912686635,-336.28855124,0.00019178,2]
[360640741,1746912686644,-569.63,0.00019178,2]
[360640742,1746912686654,-400.0,0.00019178,2]
[360640743,1746912686664,-400.0,0.00019178,2]
[360640744,1746912686674,-400.0,0.00019178,2]
[360640745,1746912686684,-3295.86,0.00019178,2]
[360640746,1746912686694,-569.63,0.00019178,2]
[360640747,1746912686704,-400.0,0.00019178,2]
[360640748,1746912686714,-400.0,0.00019178,2]
[360640749,1746912686724,-1198.94,0.00019178,2]
[360640750,1746912686736,-377.64706811,0.00019178,2]
[360640751,1746912686746,-569.63,0.00019178,2]
[360640752,1746912686756,-400.0,0.00019178,2]
[360640753,1746912686765,-1198.94,0.00019178,2]
[360640754,1746912686775,-400.0,0.00019178,2]
[360640755,1746912686784,-3295.86,0.00019178,2]
[360640756,1746912686794,-569.63,0.00019178,2]
[360640757,1746912686803,-450.0,0.00019178,2]
[360640758,1746912686812,-400.0,0.00019178,2]
[360640759,1746912686822,-3295.86,0.00019178,2]
[360640760,1746912686831,-569.63,0.00019178,2]
[360640761,1746912686841,-54516.53,0.00019178,2]
[360640762,1746912686850,-400.0,0.00019178,2]
[360640763,1746912686860,-3295.86,0.00019178,2]
[360640764,1746912686869,-1198.94,0.00019178,2]
[360640765,1746912686879,-54516.53,0.00019178,2]
[360640766,1746912686888,-569.63,0.00019178,2]
[360640767,1746912686898,-400.0,0.00019178,2]
[360640768,1746912686908,-3295.86,0.00019178,2]
[360640769,1746912686918,-1198.94,0.00019178,2]
[360640770,1746912686929,-569.63,0.00019178,2]
[360640771,1746912686939,-54516.53,0.00019178,2]
[360640772,1746912686949,-400.0,0.00019178,2]
[360640773,1746912686959,-3295.86,0.00019178,2]
[360640774,1746912686968,-1198.94,0.00019178,2]
[360640775,1746912686978,-569.63,0.00019178,2]
[360640776,1746912686987,-54516.53,0.00019178,2]
[360640777,1746912686998,-400.0,0.00019178,2]
[360640778,1746912687007,-3295.86,0.00019178,2]
[360640779,1746912687018,-1198.94,0.00019178,2]
[360640780,1746912687027,-54516.53,0.00019178,2]
[360640781,1746912687037,-569.63,0.00019178,2]
[360640782,1746912687047,-1269.70590738,0.00019178,2]
[360640783,1746912688519,-1135.96567531,0.00019178,2]
[360640784,1746912688531,-321.54989952,0.00019178,2]
[360640785,1746912688939,-568.63851779,0.00019178,2]
[360640786,1746912688948,-1198.94,0.00019178,2]
[360640787,1746912688958,-273.35161317,0.00019178,2]
[360640788,1746912688967,-569.63,0.00019178,2]
[360640789,1746912688976,-54516.53,0.00019178,2]
[360640790,1746912688986,-180.2295009,0.00019178,2]
[360640791,1746912688995,-3295.86,0.00019178,2]
[360640792,1746912689004,-1198.94,0.00019178,2]
[360640793,1746912689013,-569.63,0.00019178,2]
[360640794,1746912689022,-54516.53,0.00019178,2]
[360640795,1746912689031,-503.59687382,0.00019178,2]
[360640796,1746912689040,-3295.86,0.00019178,2]
[360640797,1746912689049,-1198.94,0.00019178,2]
[360640798,1746912689058,-569.63,0.00019178,2]
[360640799,1746912689067,-54516.53,0.00019178,2]
[360640800,1746912689077,-3295.86,0.00019178,2]
[360640801,1746912689087,-569.63,0.00019178,2]
[360640802,1746912689096,-36701.43810982,0.00019178,2]
[360640803,1746912689697,-758.9050554,0.00019178,2]
[360640804,1746912689709,-9038.31132716,0.00019178,2]
[360640805,1746912689721,-8017.87550762,0.00019178,2]
[360640806,1746912689731,-569.63,0.00019178,2]
[360640807,1746912689742,-3131.86219603,0.00019178,2]
[360640808,1746912689808,-16249.57427214,0.00019178,2]
[360640809,1746912689819,-35135.09353183,0.00019178,2]
[360640810,1746912689831,-569.68,0.00019178,2]
[360640811,1746912689840,-11861.82461109,0.00019178,2]
[360640812,1746912689853,-8226.24985976,0.00019178,2]
[360640813,1746912689865,-34428.45552915,0.00019178,2]
[360640814,1746912689875,-400.0,0.00019178,2]
[360640815,1746912689885,-13662.7058886,0.00019178,2]
[360640816,1746912689897,-40853.8241114,0.00019178,2]
[360640817,1746912689906,-400.0,0.00019178,2]
[360640818,1746912689916,-400.0,0.00019178,2]
[360640819,1746912689925,-21162.20403641,0.00019178,2]
[360640820,1746912689937,-4771.76,0.00019178,2]
[360640821,1746912689949,-312.75264615,0.00019178,2]
[360640822,1746912689964,-4665.0002005,0.00019178,2]
[360640823,1746912689977,-7519.42905762,0.00019178,2]
[360640824,1746912689988,-2174.04318801,0.00019178,2]
[360640826,1746912914852,851.57,0.00016269,2]
[360640827,1746913031910,456.92,0.00025004,120]
[360640828,1746913032106,456.92,0.00027277,120]
[360640831,1746913291743,900.0,0.00030136,120]
[360640832,1746913324587,900.0,0.00030136,120]
[360640833,1746913376969,900.0,0.00030136,120]
[360640835,1746913408428,397.84,0.00013699,2]
[360640838,1746913522055,425.0,0.00030137,120]
[360640839,1746913629116,-169.12783629,0.00018107,2]
[360640840,1746913629144,-551.35480675,0.00018168,2]
[360640841,1746913644132,-448.64519325,0.00018168,2]
[360640842,1746913644153,-250.0,0.00018173,2]
[360640843,1746913644174,-172.03,0.00018178,2]
[360640844,1746913644197,-456.92,0.00018185,2]
[360640845,1746913644219,-223.08,0.00018207,2]
[360640846,1746913644240,-851.57,0.00018533,2]
[360640847,1746913644261,-500.0,0.00018712,2]
[360640848,1746913644282,-166.54,0.00018725,2]
[360640849,1746913644304,-3070.16,0.00018978,2]
[360640850,1746913644325,-207.4,0.00019055,2]
[360640851,1746913644346,-1200.0,0.00019065,2]
[360640852,1746913644370,-388.71047078,0.00019066,2]
[360640853,1746913652086,-1049.5509563,0.00019066,2]
[360640854,1746913653083,-512.24031927,0.00019066,2]
[360640865,1746913831879,-301.0,0.00018877,2]
[360640866,1746913831889,-19.93353656,0.00018877,2]
[360640867,1746913831900,-1180.06646344,0.00018877,2]
[360640868,1746913831910,-6377.28353656,0.00018878,2]
[360640869,1746913831921,-668.59142846,0.00018878,2]
[360640870,1746913831933,-4354.05584211,0.00018878,2]
[360640871,1746913831949,-36468.49001884,0.00018878,2]
[360640872,1746913831961,-624.79046279,0.00018878,2]
[360640873,1746913832059,-1593.32767325,0.00018878,2]
[360640874,1746913832070,-484.24342007,0.00018878,2]
[360640875,1746913832081,-1565.51600315,0.00018878,2]
[360640876,1746913832126,-2763.35323409,0.00018878,2]
[360640877,1746913832137,-848.34590924,0.00018878,2]
[360640878,1746913832188,-1795.88231506,0.00018878,2]
[360640879,1746913832198,-2712.59982954,0.00018978,2]
[360640880,1746913832209,-592.1361,0.00018978,2]
[360640882,1746913832221,-501.35,0.00019,7]
[360640883,1746913832231,-500.0,0.00019065,2]
[360640884,1746913832240,-500.0,0.00019065,2]
[360640885,1746913832250,-500.0,0.00019065,2]
[360640886,1746913832259,-500.0,0.00019065,2]
[360640887,1746913832269,-500.0,0.00019065,2]
[360640888,1746913832278,-500.0,0.00019065,2]
[360640889,1746913832287,-356.43137804,0.00019065,2]
[360640920,1746913838038,-2712.59982953,0.00018989,2]
[360640921,1746913838048,-143.56862196,0.00019065,2]
[360640922,1746913838057,-500.0,0.00019065,2]
[360640923,1746913838066,-500.0,0.00019065,2]
[360640924,1746913838075,-500.0,0.00019065,2]
[360640925,1746913838084,-648.54855953,0.00019065,2]
[360640926,1746913838094,-500.0,0.00019065,2]
[360640927,1746913838105,-500.0,0.00019065,2]
[360640928,1746913838116,-500.0,0.00019065,2]
[360640929,1746913838126,-500.0,0.00019065,2]
[360640930,1746913838135,-500.0,0.00019065,2]
[360640931,1746913838144,-500.0,0.00019065,2]
[360640932,1746913838154,-500.0,0.00019065,2]
[360640933,1746913838163,-187.83815532,0.00019065,2]
[360640934,1746913838172,-21580.57715284,0.00019066,2]
[360640935,1746913838184,-4101.11284716,0.00019066,2]
[360640936,1746913838193,-395.87,0.00019066,2]
[360640937,1746913838202,-946.42,0.00019066,2]
[360640938,1746913838211,-5306.64,0.00019066,2]
[360640939,1746913838221,-2500.0,0.00019066,2]
[360640940,1746913838231,-279.89518734,0.00019077,2]
[360640941,1746913838242,-167.38850893,0.00019078,2]
[360640942,1746913838252,-155.5948655,0.00019078,2]
[360640943,1746913838262,-153.24649377,0.00019078,2]
[360640944,1746913838271,-53832.06366266,0.00019078,2]
[360640945,1746913838284,-48429.6332643,0.00019078,2]
[360640946,1746913838293,-2044.7390616,0.00019078,2]
[360640947,1746913838304,-587.59447548,0.00019078,2]
[360640948,1746913838315,-627.25815179,0.00019078,2]
[360640949,1746913838326,-3014.6,0.000191,2]
[360640950,1746913838335,-200.0,0.00019128,2]
[360640951,1746913838344,-2971.99386051,0.0001915,2]
[360640952,1746913838353,-841.324,0.0001915,2]
[360640953,1746913838363,-3935.3145,0.00019151,2]
[360640954,1746913838372,-372.92,0.00019156,2]
[360640955,1746913838381,-4904.3653388,0.00019166,2]
[360640956,1746913838390,-14551.78292,0.00019166,2]
[360640957,1746913838400,-6007.86607577,0.00019166,2]
[360640958,1746913838414,-7573.69378632,0.00019166,2]
[360640959,1746913838426,-2383.49999997,0.00019166,2]
[360640961,1746913838442,-4785.71253329,0.00019166,2]
[360640962,1746913838455,-4844.0,0.00019166,2]
[360640963,1746913838483,-51607.15750611,0.00019166,2]
[360640964,1746913838495,-4300.95149412,0.00019166,2]
[360640965,1746913838510,-1230.46192603,0.00019166,2]
[360640967,1746913838532,-2712.59982953,0.00019,2]
[360640969,1746913838541,-25189.38419072,0.00019166,2]
[360640971,1746913838555,-13336.26155247,0.00019166,2]
[360640987,1746913840379,-74487.4849455,0.00019166,2]
[360640988,1746913840388,-173.5745617,0.00019168,2]
[360640989,1746913840398,-372.92,0.00019168,2]
[360640990,1746913840408,-279.89518726,0.00019168,2]
[360640991,1746913840418,-500.0,0.00019173,2]
[360640992,1746913840428,-500.0,0.00019173,2]
[360640993,1746913840438,-1164.93886302,0.00019177,5]
[360640994,1746913840449,-500.0,0.00019177,2]
[360640995,1746913840458,-300.0,0.00019177,2]
[360640996,1746913840467,-686.0,0.00019178,2]
[360640997,1746913840477,-280.89640898,0.00019178,2]
[360640998,1746913840487,-446.94687307,0.00019178,2]
[360640999,1746913840496,-316.776958,0.00019178,2]
[360641000,1746913840507,-316.776958,0.00019178,2]
[360641001,1746913840517,-316.776958,0.00019178,2]
[360641002,1746913840526,-316.776958,0.00019178,2]
[360641003,1746913840535,-316.776958,0.00019178,2]
[360641004,1746913840544,-316.776958,0.00019178,2]
[360641005,1746913840554,-316.776958,0.00019178,2]
[360641006,1746913840564,-316.776958,0.00019178,2]
[360641007,1746913840573,-316.776958,0.00019178,2]
[360641008,1746913840583,-316.776958,0.00019178,2]
[360641009,1746913840592,-316.776958,0.00019178,2]
[360641010,1746913840601,-316.776958,0.00019178,2]
[360641011,1746913840610,-316.776958,0.00019178,2]
[360641013,1746913840621,-316.776958,0.00019178,2]
[360641016,1746913840631,-6696.682607,0.00019178,2]
[360641017,1746913840641,-6696.682607,0.00019178,2]
[360641020,1746913840651,-6696.682607,0.00019178,2]
[360641021,1746913840660,-6696.682607,0.00019178,2]
[360641023,1746913840670,-6696.682607,0.00019178,2]
[360641025,1746913840679,-6696.682607,0.00019178,2]
[360641027,1746913840689,-6696.682607,0.00019178,2]
[360641029,1746913840698,-6696.682607,0.00019178,2]
[360641032,1746913840708,-6696.682607,0.00019178,2]
[360641033,1746913840717,-152.985585,0.00019178,2]
[360641035,1746913840727,-6696.682607,0.00019178,2]
[360641037,1746913840736,-152.985585,0.00019178,2]
[360641039,1746913840749,-6696.682607,0.00019178,2]
[360641041,1746913840759,-6696.682607,0.00019178,2]
[360641043,1746913840768,-152.985585,0.00019178,2]
[360641045,1746913840779,-6696.682607,0.00019178,2]
[360641047,1746913840788,-152.985585,0.00019178,2]
[360641049,1746913840797,-6696.682607,0.00019178,2]
[360641051,1746913840807,-151.0,0.00019178,2]
[360641053,1746913840818,-400.0,0.00019178,2]
[360641055,1746913840827,-400.0,0.00019178,2]
[360641057,1746913840837,-400.0,0.00019178,2]
[360641059,1746913840846,-400.0,0.00019178,2]
[360641061,1746913840855,-400.0,0.00019178,2]
[360641063,1746913840864,-155.39,0.00019178,2]
[360641065,1746913840874,-200.0,0.00019178,2]
[360641067,1746913840883,-500.0,0.00019178,2]
[360641069,1746913840892,-500.0,0.00019178,2]
[360641071,1746913840901,-400.0,0.00019178,2]
[360641073,1746913840911,-400.0,0.00019178,2]
[360641075,1746913840920,-505.2299391,0.00019178,2]
[360641077,1746913840931,-400.0,0.00019178,2]
[360641079,1746913840941,-400.0,0.00019178,2]
[360641081,1746913840950,-406.5611586,0.00019178,2]
[360641083,1746913840959,-400.0,0.00019178,2]
[360641085,1746913840969,-400.0,0.00019178,2]
[360641087,1746913840978,-400.0,0.00019178,2]
[360641089,1746913840987,-403.68716271,0.00019178,2]
[360641091,1746913840997,-400.0,0.00019178,2]
[360641093,1746913841007,-400.0,0.00019178,2]
[360641095,1746913841016,-400.0,0.00019178,2]
[360641097,1746913841025,-400.0,0.00019178,2]
[360641099,1746913841035,-400.0,0.00019178,2]
[360641100,1746913841044,-400.0,0.00019178,2]
[360641101,1746913841053,-400.0,0.00019178,2]
[360641102,1746913841062,-400.0,0.00019178,2]
[360641103,1746913841072,-400.0,0.00019178,2]
[360641104,1746913841082,-400.0,0.00019178,2]
[360641105,1746913841091,-400.0,0.00019178,2]
[360641106,1746913841100,-400.0,0.00019178,2]
[360641107,1746913841109,-400.0,0.00019178,2]
[360641108,1746913841118,-400.0,0.00019178,2]
[360641109,1746913841127,-400.0,0.00019178,2]
[360641110,1746913841136,-501.96286065,0.00019178,2]
[360641111,1746913841146,-470.69,0.00019178,2]
[360641112,1746913841156,-400.0,0.00019178,2]
[360641113,1746913841165,-400.0,0.00019178,2]
[360641114,1746913841174,-402.95210564,0.00019178,2]
[360641115,1746913841183,-400.0,0.00019178,2]
[360641116,1746913841192,-400.0,0.00019178,2]
[360641117,1746913841201,-400.0,0.00019178,2]
[360641118,1746913841211,-400.0,0.00019178,2]
[360641120,1746913841220,-400.0,0.00019178,2]
[360641122,1746913841229,-400.0,0.00019178,2]
[360641124,1746913841239,-266.22588349,0.00019178,2]
[360641126,1746913841248,-400.0,0.00019178,2]
[360641128,1746913841258,-400.0,0.00019178,2]
[360641130,1746913841267,-400.0,0.00019178,2]
[360641132,1746913841277,-400.0,0.00019178,2]
[360641134,1746913841286,-420.09744836,0.00019178,2]
[360641136,1746913841295,-507.18303721,0.00019178,2]
[360641138,1746913841305,-400.0,0.00019178,2]
[360641140,1746913841315,-400.0,0.00019178,2]
[360641142,1746913841324,-153.29453,0.00019178,2]
[360641144,1746913841333,-500.0,0.00019178,2]
[360641146,1746913841343,-400.0,0.00019178,2]
[360641148,1746913841353,-400.0,0.00019178,2]
[360641150,1746913841362,-400.0,0.00019178,2]
[360641152,1746913841371,-453.63141877,0.00019178,2]
[360641154,1746913841380,-400.0,0.00019178,2]
[360641156,1746913841390,-400.0,0.00019178,2]
[360641158,1746913841399,-400.0,0.00019178,2]
[360641160,1746913841408,-400.0,0.00019178,2]
[360641162,1746913841418,-400.0,0.00019178,2]
[360641164,1746913841427,-400.0,0.00019178,2]
[360641166,1746913841437,-400.0,0.00019178,2]
[360641168,1746913841446,-427.86066205,0.00019178,2]
[360641170,1746913841455,-400.0,0.00019178,2]
[360641172,1746913841464,-400.0,0.00019178,2]
[360641174,1746913841474,-400.0,0.00019178,2]
[360641175,1746913841484,-400.0,0.00019178,2]
[360641178,1746913841493,-400.0,0.00019178,2]
[360641179,1746913841502,-400.0,0.00019178,2]
[360641181,1746913841511,-503.50124388,0.00019178,2]
[360641183,1746913841521,-400.0,0.00019178,2]
[360641185,1746913841531,-400.0,0.00019178,2]
[360641188,1746913841540,-400.0,0.00019178,2]
[360641190,1746913841550,-400.0,0.00019178,2]
[360641191,1746913841559,-400.0,0.00019178,2]
[360641194,1746913841569,-400.0,0.00019178,2]
[360641196,1746913841579,-400.0,0.00019178,2]
[360641198,1746913841588,-401.10169997,0.00019178,2]
[360641200,1746913841598,-400.0,0.00019178,2]
[360641202,1746913841607,-400.0,0.00019178,2]
[360641204,1746913841616,-244.57361184,0.00019178,2]
[360641206,1746913841627,-400.0,0.00019178,2]
[360641208,1746913841638,-400.0,0.00019178,2]
[360641210,1746913841647,-508.73378721,0.00019178,2]
[360641212,1746913841656,-162.72538672,0.00019178,2]
[360641214,1746913841666,-400.0,0.00019178,2]
[360641216,1746913841676,-500.0,0.00019178,2]
[360641218,1746913841685,-400.0,0.00019178,2]
[360641220,1746913841696,-400.0,0.00019178,2]
[360641222,1746913841706,-400.0,0.00019178,2]
[360641224,1746913841715,-400.0,0.00019178,2]
[360641226,1746913841725,-400.0,0.00019178,2]
[360641228,1746913841734,-500.0,0.00019178,2]
[360641230,1746913841746,-510.77461301,0.00019178,2]
[360641232,1746913841756,-504.69079431,0.00019178,2]
[360641234,1746913841765,-400.0,0.00019178,2]
[360641236,1746913841774,-500.0,0.00019178,2]
[360641238,1746913841785,-400.0,0.00019178,2]
[360641240,1746913841794,-400.0,0.00019178,2]
[360641242,1746913841803,-400.0,0.00019178,2]
[360641244,1746913841813,-400.0,0.00019178,2]
[360641246,1746913841824,-400.0,0.00019178,2]
[360641248,1746913841835,-400.0,0.00019178,2]
[360641250,1746913841844,-400.0,0.00019178,2]